{"text_format":"3","workbook":"xlsx","n_sheets":26,"sheets":["Start","1","2","3","4","5","6","7","8","9","10","11","12","13","14","15","16","17","18","19","20 ","21","22","23 ","24","Finn ut mer"],"not_rendered":{"images":24,"defined_names":5,"pivot_tables":19},"read":"whole","date_system":"1900"}

{"sheet":"Start","index":0,"n_rows":5,"n_cols":1,"rows_kept":5}
["Velkommen\nInstruksjoner for skjermlesere: Få mer ut av pivottabeller. En enkel pivottabell gir deg en samlet oversikt over dataene, men noen ganger trenger du detaljerte svar på bestemte spørsmål. Det er da det kan hjelpe å legge til flere kolonnefelter og radfelter. \nInstruksjonene angir hvilke celler du må gå til for å bruke en funksjon eller for å lese mer.\nTrykk på CTRL+PAGE DOWN for å starte."]
["Få mer ut av pivottabeller"]
["En enkel pivottabell gir deg en samlet oversikt over dataene,\nmen noen ganger trenger du detaljerte svar på bestemte spørsmål.\nDet er da det kan hjelpe å legge til flere kolonnefelter og radfelter."]
["KJEKT Å VITE\nTok du den første opplæringen? Hvis ikke går du til Fil > Ny og finner Lag din første pivottabell."]
["Gå tilbake til toppen ved å trykke på CTRL+HOME. Trykk på CTRL+PAGE DOWN for å starte omvisningen."]

{"sheet":"1","index":1,"n_rows":16,"n_cols":9,"rows_kept":16}
["I den første opplæringen introduserte vi deg for prinsippet bak pivottabell. Vi forklarte også hvordan et radfelt kan brukes som en betingelse som deler opp et verdifelt.   "]
["Cellene H10 til I14 inneholder en pivottabell som summerer dataene i cellene B8 til E16. Pivottabell har to kolonner: Kjøper og Summer av Beløp. Kolonnen Kjøper inneholder verdiene Far, Mor, Stine og Totalsum; kolonnen Summer av Beløp inneholder verdiene kr 220, kr 270, kr 810 og kr 1 300. Kolonnen Kjøper består av et radfelt, og kolonnen Summer av Beløp består av et verdifelt."]
["Hvis du vil fortsette denne opplæringen, trykker du på CTRL+PAGE DOWN. Hvis du vil gå til forrige ark, trykker du på CTRL+PAGE UP."]
[]
[]
[]
[]
[null,"Dato","Kjøper","Type","Beløp"]
["Dette eksemplet viser hvordan radfeltet ...","2017-01-01","Far","Gaver",{"v":95,"d":"kr 95"}]
["... deler opp verdifeltet.","2017-01-15","Mor","Mat",{"v":325,"d":"kr 325"},null,null,"Kjøper","Summer av Beløp"]
[null,"2017-01-17","Mor","Billetter",{"v":250,"d":"kr 250"},null,null,"Far",{"v":220,"d":"kr 220"}]
[null,"2017-01-21","Far","Mat",{"v":125,"d":"kr 125"},null,null,"Stine",{"v":270,"d":"kr 270"}]
[null,"2017-02-02","Mor","Mat",{"v":235,"d":"kr 235"},null,null,"Mor",{"v":810,"d":"kr 810"}]
[null,"2017-02-20","Stine","Musikk",{"v":20,"d":"kr 20"},null,null,"Grand Total",{"v":1300,"d":"kr 1,300"}]
[null,"2017-02-25","Stine","Billetter",{"v":125,"d":"kr 125"}]
[null,"2017-02-25","Stine","Sport",{"v":125,"d":"kr 125"}]

{"sheet":"2","index":2,"n_rows":108,"n_cols":7,"rows_kept":108}
["Men når du først ser på en pivottabell, kan det hende at du trenger flere svar fra den."]
["Når du først ser på en pivottabell, har du kanskje spørsmål som: «Når ble dette kjøpt?», «Hva brukte hver person penger på?», «Hva kjøpte mor som var så dyrt?»."]
["I dette eksemplet viser cellene F11 til G15 den samme pivottabellen med to kolonner som før. Kolonnen Kjøper er et radfelt og inneholder verdiene Far, Mor, Stine og Totalsum; kolonnen Summer av Beløp er verdifeltet og inneholder verdiene kr 220, kr 270, kr 810 og kr 1 300. "]
["Hvis du vil fortsette denne opplæringen, trykker du på CTRL+PAGE DOWN. Hvis du vil gå til forrige ark, trykker du på CTRL+PAGE UP."]
[]
[]
[]
[]
[]
[]
[{"$nulls":5},"Kjøper","Summer av Beløp"]
[{"$nulls":5},"Far",{"v":220,"d":"kr 220"}]
[{"$nulls":5},"Stine",{"v":270,"d":"kr 270"}]
[{"$nulls":5},"Mor",{"v":810,"d":"kr 810"}]
[{"$nulls":5},"Grand Total",{"v":1300,"d":"kr 1,300"}]
{"$rows_empty":84}
[null,"Dato","Kjøper","Type","Beløp"]
[null,"2017-01-01","Far","Gaver",{"v":95,"d":"kr 95"}]
[null,"2017-01-15","Mor","Mat",{"v":325,"d":"kr 325"}]
[null,"2017-01-17","Mor","Billetter",{"v":250,"d":"kr 250"}]
[null,"2017-01-21","Far","Mat",{"v":125,"d":"kr 125"}]
[null,"2017-02-02","Mor","Mat",{"v":235,"d":"kr 235"}]
[null,"2017-02-20","Stine","Musikk",{"v":20,"d":"kr 20"}]
[null,"2017-02-25","Stine","Billetter",{"v":125,"d":"kr 125"}]
[null,"2017-02-25","Stine","Sport",{"v":125,"d":"kr 125"}]

{"sheet":"3","index":3,"n_rows":108,"n_cols":7,"rows_kept":108}
[]
["Hva brukte hver person penger på?"]
["Til opplysning viser cellene F11 til G15 den samme pivottabellen med to kolonner som før. Kolonnen Kjøper er et radfelt og inneholder verdiene Far, Mor, Stine og Totalsum; kolonnen Summer av Beløp er verdifeltet og inneholder verdiene kr 220, kr 270, kr 810 og kr 1 300. "]
["Hvis du vil fortsette denne opplæringen, trykker du på CTRL+PAGE DOWN. Hvis du vil gå til forrige ark, trykker du på CTRL+PAGE UP."]
[]
[]
[]
[]
[]
[]
[{"$nulls":5},"Kjøper","Summer av Beløp"]
[{"$nulls":5},"Far",{"v":220,"d":"kr 220"}]
[{"$nulls":5},"Stine",{"v":270,"d":"kr 270"}]
[{"$nulls":5},"Mor",{"v":810,"d":"kr 810"}]
[{"$nulls":5},"Grand Total",{"v":1300,"d":"kr 1,300"}]
{"$rows_empty":84}
[null,"Dato","Kjøper","Type","Beløp"]
[null,"2017-01-01","Far","Gaver",{"v":95,"d":"kr 95"}]
[null,"2017-01-15","Mor","Mat",{"v":325,"d":"kr 325"}]
[null,"2017-01-17","Mor","Billetter",{"v":250,"d":"kr 250"}]
[null,"2017-01-21","Far","Mat",{"v":125,"d":"kr 125"}]
[null,"2017-02-02","Mor","Mat",{"v":235,"d":"kr 235"}]
[null,"2017-02-20","Stine","Musikk",{"v":20,"d":"kr 20"}]
[null,"2017-02-25","Stine","Billetter",{"v":125,"d":"kr 125"}]
[null,"2017-02-25","Stine","Sport",{"v":125,"d":"kr 125"}]

{"sheet":"4","index":4,"n_rows":108,"n_cols":9,"rows_kept":108}
["Det siste spørsmålet vi stilte, var «Hva brukte hver person penger på?»."]
["Vi har besvart spørsmålet ved å legge til et kolonnefelt for Type. Derfor har pivottabell nå fem kolonner som viser oss hvilken type kjøp hver person har gjort. "]
["Vår nye pivottabell går nå fra celle C10 til I15 med kolonner for kjøper, mat, musikk, sport, billetter, gaver og totalsum. Kjøper og Totalsum er som før, og de nye detaljkolonnene finnes mellom dem."]
["Hvis du vil fortsette denne opplæringen, trykker du på CTRL+PAGE DOWN. Hvis du vil gå til forrige ark, trykker du på CTRL+PAGE UP."]
[]
[]
[]
[]
[]
[null,null,"Summer av Beløp","Type"]
[null,null,"Kjøper","Mat","Musikk","Sport","Billetter","Gaver","Grand Total"]
[null,null,"Far",{"v":125,"d":"kr 125"},{"$nulls":3},{"v":95,"d":"kr 95"},{"v":220,"d":"kr 220"}]
[null,null,"Stine",null,{"v":20,"d":"kr 20"},{"v":125,"d":"kr 125"},{"v":125,"d":"kr 125"},null,{"v":270,"d":"kr 270"}]
[null,null,"Mor",{"v":560,"d":"kr 560"},null,null,{"v":250,"d":"kr 250"},null,{"v":810,"d":"kr 810"}]
[null,null,"Grand Total",{"v":685,"d":"kr 685"},{"v":20,"d":"kr 20"},{"v":125,"d":"kr 125"},{"v":375,"d":"kr 375"},{"v":95,"d":"kr 95"},{"v":1300,"d":"kr 1,300"}]
{"$rows_empty":84}
[null,"Dato","Kjøper","Type","Beløp"]
[null,"2017-01-01","Far","Gaver",{"v":95,"d":"kr 95"}]
[null,"2017-01-15","Mor","Mat",{"v":325,"d":"kr 325"}]
[null,"2017-01-17","Mor","Billetter",{"v":250,"d":"kr 250"}]
[null,"2017-01-21","Far","Mat",{"v":125,"d":"kr 125"}]
[null,"2017-02-02","Mor","Mat",{"v":235,"d":"kr 235"}]
[null,"2017-02-20","Stine","Musikk",{"v":20,"d":"kr 20"}]
[null,"2017-02-25","Stine","Billetter",{"v":125,"d":"kr 125"}]
[null,"2017-02-25","Stine","Sport",{"v":125,"d":"kr 125"}]

{"sheet":"5","index":5,"n_rows":108,"n_cols":9,"rows_kept":108}
["Hvis pivottabell er vanskelig å forstå, kan du prøve dette: Les fra venstre, deretter fra toppen og deretter ned. I eksemplet nedenfor er far i celle C12, mat for kr 125 i celle D12, gaver for kr 95 i celle E12 og totalsum på kr 220 i celle I12. Radene 13 og 14 viser detaljene for Stine og mor, og rad 15 viser totalsum."]
["Hvis du vil fortsette denne opplæringen, trykker du på CTRL+PAGE DOWN. Hvis du vil gå til forrige ark, trykker du på CTRL+PAGE UP."]
{"$rows_empty":7}
[null,null,"Summer av Beløp","Type"]
[null,null,"Kjøper","Mat","Gaver","Musikk","Sport","Billetter","Grand Total"]
[null,null,"Far",{"v":125,"d":"kr 125"},{"v":95,"d":"kr 95"},{"$nulls":3},{"v":220,"d":"kr 220"}]
[null,null,"Stine",null,null,{"v":20,"d":"kr 20"},{"v":125,"d":"kr 125"},{"v":125,"d":"kr 125"},{"v":270,"d":"kr 270"}]
[null,null,"Mor",{"v":560,"d":"kr 560"},{"$nulls":3},{"v":250,"d":"kr 250"},{"v":810,"d":"kr 810"}]
[null,null,"Grand Total",{"v":685,"d":"kr 685"},{"v":95,"d":"kr 95"},{"v":20,"d":"kr 20"},{"v":125,"d":"kr 125"},{"v":375,"d":"kr 375"},{"v":1300,"d":"kr 1,300"}]
{"$rows_empty":84}
[null,"Dato","Kjøper","Type","Beløp"]
[null,"2017-01-01","Far","Gaver",{"v":95,"d":"kr 95"}]
[null,"2017-01-15","Mor","Mat",{"v":325,"d":"kr 325"}]
[null,"2017-01-17","Mor","Billetter",{"v":250,"d":"kr 250"}]
[null,"2017-01-21","Far","Mat",{"v":125,"d":"kr 125"}]
[null,"2017-02-02","Mor","Mat",{"v":235,"d":"kr 235"}]
[null,"2017-02-20","Stine","Musikk",{"v":20,"d":"kr 20"}]
[null,"2017-02-25","Stine","Billetter",{"v":125,"d":"kr 125"}]
[null,"2017-02-25","Stine","Sport",{"v":125,"d":"kr 125"}]

{"sheet":"6","index":6,"n_rows":3,"n_cols":1,"rows_kept":3}
["Ikke gjør dette ennå, men i et av de neste trinnene mens du arbeider med en pivottabell. Det første du gjør, er å opprette detaljer i Kolonner-feltet. Du gjør dette ved å plassere Type-feltet i Kolonner-feltområdet."]
["Et bilde av en feltliste for pivottabellfelt viser en pilmarkør som drar Type-feltet til Kolonner-området."]
["Hvis du vil fortsette denne opplæringen, trykker du på CTRL+PAGE DOWN. Hvis du vil gå til forrige ark, trykker du på CTRL+PAGE UP."]

{"sheet":"7","index":7,"n_rows":108,"n_cols":8,"rows_kept":108}
["1. Pivottabellområdet i dette eksemplet er i cellene B13 til C17. Gå til hvilken som helst av disse cellene."]
["2. Trykk på ALT+JE, L for å starte feltlisten for pivottabellfelt. Fokus blir som standard på tekstboksen for søk: «Søk» rediger"]
["3. Trykk på piltastene for å velge Type-feltet. Når det er valgt, trykker du på MELLOMROM for å legge til Type-feltet i Rader-området. "]
["4. Trykk TAB for å velge type-felt. Trykk ENTER, og trykk deretter piltastene for å velge Flytt til Kolonneetiketter, og trykk ENTER for å legge til feltet type i kolonner-området. Trykk på ALT+JE+L for å starte feltruten for Pivottabellfelt."]
["Hvis du vil fortsette denne opplæringen, trykker du på CTRL+PAGE DOWN. Hvis du vil gå til forrige ark, trykker du på CTRL+PAGE UP."]
[]
[]
[]
[{"$nulls":7},{"$f":"IF(AND($B$14=\"Kjøper\",$H$17=810),\"Godt jobbet! Du har plassert\",\" \")","v":" "}]
[{"$nulls":7},{"$f":"IF(AND($B$14=\"Kjøper\",$H$17=810),\"ditt første kolonnefelt. Klikk\",\" \")","v":" "}]
[{"$nulls":7},{"$f":"IF(AND($B$14=\"Kjøper\",$H$17=810),\"på Neste for å fortsette...\",\" \")","v":" "}]
[]
[null,"Kjøper","Summer av Beløp"]
[null,"Far",{"v":220,"d":"kr 220"}]
[null,"Stine",{"v":270,"d":"kr 270"}]
[null,"Mor",{"v":810,"d":"kr 810"}]
[null,"Totalsum",{"v":1300,"d":"kr 1,300"}]
{"$rows_empty":82}
[null,"Dato","Kjøper","Type","Beløp"]
[null,"2017-01-01","Far","Gaver",{"v":95,"d":"kr 95"}]
[null,"2017-01-15","Mor","Mat",{"v":325,"d":"kr 325"}]
[null,"2017-01-17","Mor","Billetter",{"v":250,"d":"kr 250"}]
[null,"2017-01-21","Far","Mat",{"v":125,"d":"kr 125"}]
[null,"2017-02-02","Mor","Mat",{"v":235,"d":"kr 235"}]
[null,"2017-02-20","Stine","Musikk",{"v":20,"d":"kr 20"}]
[null,"2017-02-25","Stine","Billetter",{"v":125,"d":"kr 125"}]
[null,"2017-02-25","Stine","Sport",{"v":125,"d":"kr 125"}]

{"sheet":"8","index":8,"n_rows":108,"n_cols":9,"rows_kept":108}
["La oss gå gjennom pivottabell du nettopp laget, men denne gangen har vi lagt til noen spesielle farger for å skille rad-, kolonne- og verdifelter."]
["Radfeltet går fra celle C10 til C13 og er sjattert i gult."]
["Kolonnefelt går fra celle D9 til H10 og er sjattert i oransje."]
["Verdifelt går fra celle D11 til H13 og er sjattert i blått."]
["Hvis du vil fortsette denne opplæringen, trykker du på CTRL+PAGE DOWN. Hvis du vil gå til forrige ark, trykker du på CTRL+PAGE UP."]
[]
[]
[]
[null,null,"Summer av Beløp","Type"]
[null,null,"Kjøper","Mat","Gaver","Musikk","Sport","Billetter","Grand Total"]
[null,null,"Far",{"v":125,"d":"kr 125"},{"v":95,"d":"kr 95"},{"$nulls":3},{"v":220,"d":"kr 220"}]
[null,null,"Stine",null,null,{"v":20,"d":"kr 20"},{"v":125,"d":"kr 125"},{"v":125,"d":"kr 125"},{"v":270,"d":"kr 270"}]
[null,null,"Mor",{"v":560,"d":"kr 560"},{"$nulls":3},{"v":250,"d":"kr 250"},{"v":810,"d":"kr 810"}]
[null,null,"Grand Total",{"v":685,"d":"kr 685"},{"v":95,"d":"kr 95"},{"v":20,"d":"kr 20"},{"v":125,"d":"kr 125"},{"v":375,"d":"kr 375"},{"v":1300,"d":"kr 1,300"}]
{"$rows_empty":85}
[null,"Dato","Kjøper","Type","Beløp"]
[null,"2017-01-01","Far","Gaver",{"v":95,"d":"kr 95"}]
[null,"2017-01-15","Mor","Mat",{"v":325,"d":"kr 325"}]
[null,"2017-01-17","Mor","Billetter",{"v":250,"d":"kr 250"}]
[null,"2017-01-21","Far","Mat",{"v":125,"d":"kr 125"}]
[null,"2017-02-02","Mor","Mat",{"v":235,"d":"kr 235"}]
[null,"2017-02-20","Stine","Musikk",{"v":20,"d":"kr 20"}]
[null,"2017-02-25","Stine","Billetter",{"v":125,"d":"kr 125"}]
[null,"2017-02-25","Stine","Sport",{"v":125,"d":"kr 125"}]

{"sheet":"9","index":9,"n_rows":3,"n_cols":1,"rows_kept":3}
["Du kan også tenke på det på en annen måte: Radfelt er til venstre, og kolonnefelt er øverst. Hver av disse gir en betingelse til verdifelt, som summerer dem."]
["Et begrepsmessig bilde viser et rektangulært område i fire deler med radfelt nederst til venstre i gult, kolonnefelt øverst til høyre i oransje og verdifelt nederst til høyre i blått."]
["Hvis du vil fortsette denne opplæringen, trykker du på CTRL+PAGE DOWN. Hvis du vil gå til forrige ark, trykker du på CTRL+PAGE UP."]

{"sheet":"10","index":10,"n_rows":3,"n_cols":1,"rows_kept":3}
["Tenk på den måten når du bruker feltlisten. Radfelt er til venstre, og kolonnefelt er øverst. Hver av disse gir en betingelse til verdifelt, som summerer dem."]
["Et begrepsmessig bilde viser feltlisten for pivottabellfelt med radfelt nederst til venstre i gult, kolonnefelt øverst til høyre i oransje og verdifelt nederst til høyre i blått."]
["Hvis du vil fortsette denne opplæringen, trykker du på CTRL+PAGE DOWN. Hvis du vil gå til forrige ark, trykker du på CTRL+PAGE UP."]

{"sheet":"11","index":11,"n_rows":121,"n_cols":24,"rows_kept":121}
["Dette må du være klar over: Hvis et kolonnefelt legger til mange kolonner i en pivottabell, vil det gjøre den veldig bred. "]
["I dette eksemplet strekker pivottabell nå seg fra celle C10 til X15, siden kolonnefeltet la til 20 nye kolonner. Det er mange kolonner! Dette vil føre til mye rulling ..."]
["Hvis du vil fortsette denne opplæringen, trykker du på CTRL+PAGE DOWN. Hvis du vil gå til forrige ark, trykker du på CTRL+PAGE UP."]
[]
[]
[]
[]
[]
[]
[null,null,"Summer av Beløp","Type"]
[null,null,"Kjøper","Bilforsikring","Billetter","Boligforsikring","Bøker","Drivstoff","Elektrisitet","Elektronikk","Flyreise","Helseforsikring","Klubbavgifter","Klær","Mat","Medisinsk","Musikk","Musikkundervisning","Parkering","Skatter og avgifter","Spise ute","Sport","Tannlege","Grand Total"]
[null,null,"Far",{"$nulls":7},{"v":500,"d":"kr 500"},{"$nulls":8},{"v":500,"d":"kr 500"},null,{"v":1000,"d":"kr 1,000"},null,{"v":2000,"d":"kr 2,000"}]
[null,null,"Mor",{"v":74,"d":"kr 74"},null,{"v":235,"d":"kr 235"},null,{"v":74,"d":"kr 74"},{"v":70,"d":"kr 70"},null,null,{"v":70,"d":"kr 70"},{"v":125,"d":"kr 125"},null,{"v":470,"d":"kr 470"},{"v":74,"d":"kr 74"},{"$nulls":6},{"v":235,"d":"kr 235"},{"v":1427,"d":"kr 1,427"}]
[null,null,"Stine",null,{"v":125,"d":"kr 125"},null,{"v":250,"d":"kr 250"},null,null,{"v":125,"d":"kr 125"},{"$nulls":3},{"v":125,"d":"kr 125"},null,null,{"v":20,"d":"kr 20"},{"v":250,"d":"kr 250"},{"v":20,"d":"kr 20"},null,{"v":20,"d":"kr 20"},null,null,{"v":935,"d":"kr 935"}]
[null,null,"Grand Total",{"v":74,"d":"kr 74"},{"v":125,"d":"kr 125"},{"v":235,"d":"kr 235"},{"v":250,"d":"kr 250"},{"v":74,"d":"kr 74"},{"v":70,"d":"kr 70"},{"v":125,"d":"kr 125"},{"v":500,"d":"kr 500"},{"v":70,"d":"kr 70"},{"v":125,"d":"kr 125"},{"v":125,"d":"kr 125"},{"v":470,"d":"kr 470"},{"v":74,"d":"kr 74"},{"v":20,"d":"kr 20"},{"v":250,"d":"kr 250"},{"v":20,"d":"kr 20"},{"v":500,"d":"kr 500"},{"v":20,"d":"kr 20"},{"v":1000,"d":"kr 1,000"},{"v":235,"d":"kr 235"},{"v":4362,"d":"kr 4,362"}]
{"$rows_empty":84}
[null,"Dato","Kjøper","Type","Beløp"]
[null,"2017-01-17","Far","Sport",{"v":1000,"d":"kr 1,000"}]
[null,"2017-01-17","Far","Flyreise",{"v":500,"d":"kr 500"}]
[null,"2017-01-17","Far","Skatter og avgifter",{"v":500,"d":"kr 500"}]
[null,"2017-02-20","Stine","Musikk",{"v":20,"d":"kr 20"}]
[null,"2017-02-25","Stine","Billetter",{"v":125,"d":"kr 125"}]
[null,"2017-01-21","Stine","Bøker",{"v":250,"d":"kr 250"}]
[null,"2017-02-20","Stine","Spise ute",{"v":20,"d":"kr 20"}]
[null,"2017-02-25","Stine","Klær",{"v":125,"d":"kr 125"}]
[null,"2017-01-21","Stine","Musikkundervisning",{"v":250,"d":"kr 250"}]
[null,"2017-02-20","Stine","Parkering",{"v":20,"d":"kr 20"}]
[null,"2017-02-25","Stine","Elektronikk",{"v":125,"d":"kr 125"}]
[null,"2017-01-01","Mor","Drivstoff",{"v":74,"d":"kr 74"}]
[null,"2017-01-15","Mor","Mat",{"v":235,"d":"kr 235"}]
[null,"2017-01-21","Mor","Klubbavgifter",{"v":125,"d":"kr 125"}]
[null,"2017-02-02","Mor","Mat",{"v":235,"d":"kr 235"}]
[null,"2017-01-01","Mor","Medisinsk",{"v":74,"d":"kr 74"}]
[null,"2017-01-15","Mor","Elektrisitet",{"v":70,"d":"kr 70"}]
[null,"2017-02-02","Mor","Tannlege",{"v":235,"d":"kr 235"}]
[null,"2017-01-01","Mor","Bilforsikring",{"v":74,"d":"kr 74"}]
[null,"2017-01-15","Mor","Helseforsikring",{"v":70,"d":"kr 70"}]
[null,"2017-02-02","Mor","Boligforsikring",{"v":235,"d":"kr 235"}]

{"sheet":"12","index":12,"n_rows":119,"n_cols":5,"rows_kept":119}
["Det er et alternativ til ekstra brede pivottabeller: Du kan bruke et andre radfelt i stedet. Et andre radfelt vises rykket inn under det første radfeltet."]
["I dette eksemplet er det en pivottabell fra celle D8 til E32. Den viser far, Stine og mor som første radfelter i kolonne D. Deretter er utgiftstypene under dem som andre radfelter med elementer som sport, flyreiser, spise ute og så videre."]
["KJEKT Å VITE\nEt andre radfelt gjør at pivottabellen blir orientert loddrett i stedet for vannrett. Noen personer synes at loddrette pivottabeller er enklere å lese fordi de ikke trenger å rulle så mye fra side til side."]
["EXCEL-SPRÅK\nNoen ganger kalles det andre radfeltet for et sekundært radfelt."]
["Hvis du vil fortsette denne opplæringen, trykker du på CTRL+PAGE DOWN. Hvis du vil gå til forrige ark, trykker du på CTRL+PAGE UP."]
[]
[]
[{"$nulls":3},"Row Labels","Summer av Beløp"]
[{"$nulls":3},"Far",{"v":2000,"d":"kr 2,000"}]
[{"$nulls":3},"Flyreise",{"v":500,"d":"kr 500"}]
[{"$nulls":3},"Skatter og avgifter",{"v":500,"d":"kr 500"}]
[{"$nulls":3},"Sport",{"v":1000,"d":"kr 1,000"}]
[{"$nulls":3},"Stine",{"v":935,"d":"kr 935"}]
[{"$nulls":3},"Billetter",{"v":125,"d":"kr 125"}]
[{"$nulls":3},"Bøker",{"v":250,"d":"kr 250"}]
[{"$nulls":3},"Elektronikk",{"v":125,"d":"kr 125"}]
[{"$nulls":3},"Klær",{"v":125,"d":"kr 125"}]
[{"$nulls":3},"Musikk",{"v":20,"d":"kr 20"}]
[{"$nulls":3},"Musikkundervisning",{"v":250,"d":"kr 250"}]
[{"$nulls":3},"Parkering",{"v":20,"d":"kr 20"}]
[{"$nulls":3},"Spise ute",{"v":20,"d":"kr 20"}]
[{"$nulls":3},"Mor",{"v":1427,"d":"kr 1,427"}]
[{"$nulls":3},"Bilforsikring",{"v":74,"d":"kr 74"}]
[{"$nulls":3},"Boligforsikring",{"v":235,"d":"kr 235"}]
[{"$nulls":3},"Drivstoff",{"v":74,"d":"kr 74"}]
[{"$nulls":3},"Elektrisitet",{"v":70,"d":"kr 70"}]
[{"$nulls":3},"Helseforsikring",{"v":70,"d":"kr 70"}]
[{"$nulls":3},"Klubbavgifter",{"v":125,"d":"kr 125"}]
[{"$nulls":3},"Mat",{"v":470,"d":"kr 470"}]
[{"$nulls":3},"Medisinsk",{"v":74,"d":"kr 74"}]
[{"$nulls":3},"Tannlege",{"v":235,"d":"kr 235"}]
[{"$nulls":3},"Grand Total",{"v":4362,"d":"kr 4,362"}]
{"$rows_empty":65}
[null,"Dato","Kjøper","Type","Beløp"]
[null,"2017-01-17","Far","Sport",{"v":1000,"d":"kr 1,000"}]
[null,"2017-01-17","Far","Flyreise",{"v":500,"d":"kr 500"}]
[null,"2017-01-17","Far","Skatter og avgifter",{"v":500,"d":"kr 500"}]
[null,"2017-02-20","Stine","Musikk",{"v":20,"d":"kr 20"}]
[null,"2017-02-25","Stine","Billetter",{"v":125,"d":"kr 125"}]
[null,"2017-01-21","Stine","Bøker",{"v":250,"d":"kr 250"}]
[null,"2017-02-20","Stine","Spise ute",{"v":20,"d":"kr 20"}]
[null,"2017-02-25","Stine","Klær",{"v":125,"d":"kr 125"}]
[null,"2017-01-21","Stine","Musikkundervisning",{"v":250,"d":"kr 250"}]
[null,"2017-02-20","Stine","Parkering",{"v":20,"d":"kr 20"}]
[null,"2017-02-25","Stine","Elektronikk",{"v":125,"d":"kr 125"}]
[null,"2017-01-01","Mor","Drivstoff",{"v":74,"d":"kr 74"}]
[null,"2017-01-15","Mor","Mat",{"v":235,"d":"kr 235"}]
[null,"2017-01-21","Mor","Klubbavgifter",{"v":125,"d":"kr 125"}]
[null,"2017-02-02","Mor","Mat",{"v":235,"d":"kr 235"}]
[null,"2017-01-01","Mor","Medisinsk",{"v":74,"d":"kr 74"}]
[null,"2017-01-15","Mor","Elektrisitet",{"v":70,"d":"kr 70"}]
[null,"2017-02-02","Mor","Tannlege",{"v":235,"d":"kr 235"}]
[null,"2017-01-01","Mor","Bilforsikring",{"v":74,"d":"kr 74"}]
[null,"2017-01-15","Mor","Helseforsikring",{"v":70,"d":"kr 70"}]
[null,"2017-02-02","Mor","Boligforsikring",{"v":235,"d":"kr 235"}]

{"sheet":"13","index":13,"n_rows":3,"n_cols":1,"rows_kept":3}
["Du legger til et andre radfelt på neste ark. Du gjør dette ved å plassere Type-feltet under Kjøper-feltet i Rader-feltet."]
["Et bilde av en feltliste for pivottabellfelt viser en pilmarkør som drar Type-feltet til Rader-området."]
["Hvis du vil fortsette denne opplæringen, trykker du på CTRL+PAGE DOWN. Hvis du vil gå til forrige ark, trykker du på CTRL+PAGE UP."]

{"sheet":"14","index":14,"n_rows":122,"n_cols":9,"rows_kept":122}
["1. Pivottabellområdet i dette eksemplet er i cellene B13 til C17. Gå til hvilken som helst av disse cellene. "]
["2. Trykk på ALT+JE, L for å starte feltlisten for pivottabellfelt. Fokus blir som standard på tekstboksen for søk: Rediger «Skriv inn ordene det skal søkes etter». Ikke skriv inn noe, i stedet trykker du én gang på TAB. Obs! Hvis feltlisten ikke starter, trykker du på ALT+JE, L på nytt."]
["3. Trykk på piltastene for å gå til Type-feltet. Trykk på MELLOMROM for å legge til Type-feltet i Rader-området. "]
["4. Trykk på ESC for å lukke feltruten for pivottabellfelt. "]
["Hvis du vil fortsette denne opplæringen, trykker du på CTRL+PAGE DOWN. Hvis du vil gå til forrige ark, trykker du på CTRL+PAGE UP.",{"$nulls":7},{"$f":"IF(AND($B$15=\"Flyreise\",$C$36=235),\"Godt gjort! Du har lagt\",\" \")","v":" "}]
[{"$nulls":8},{"$f":"IF(AND($B$15=\"Flyreise\",$C$36=235),\"til et andre radfelt i\",\" \")","v":" "}]
[{"$nulls":8},{"$f":"IF(AND($B$15=\"Flyreise\",$C$36=235),\"pivottabellen. Rull nedover, \",\" \")","v":" "}]
[{"$nulls":8},{"$f":"IF(AND($B$15=\"Flyreise\",$C$36=235),\"og klikk på Neste...\",\" \")","v":" "}]
[]
[]
[]
[]
[null,"Row Labels","Summer av Beløp"]
[null,"Far",{"v":2000,"d":"kr 2,000"}]
[null,"Stine",{"v":935,"d":"kr 935"}]
[null,"Mor",{"v":1427,"d":"kr 1,427"}]
[null,"Grand Total",{"v":4362,"d":"kr 4,362"}]
{"$rows_empty":83}
[null,"Dato","Kjøper","Type","Beløp"]
[null,"2017-01-17","Far","Sport",{"v":1000,"d":"kr 1,000"}]
[null,"2017-01-17","Far","Flyreise",{"v":500,"d":"kr 500"}]
[null,"2017-01-17","Far","Skatter og avgifter",{"v":500,"d":"kr 500"}]
[null,"2017-02-20","Stine","Musikk",{"v":20,"d":"kr 20"}]
[null,"2017-02-25","Stine","Billetter",{"v":125,"d":"kr 125"}]
[null,"2017-01-21","Stine","Bøker",{"v":250,"d":"kr 250"}]
[null,"2017-02-20","Stine","Spise ute",{"v":20,"d":"kr 20"}]
[null,"2017-02-25","Stine","Klær",{"v":125,"d":"kr 125"}]
[null,"2017-01-21","Stine","Musikkundervisning",{"v":250,"d":"kr 250"}]
[null,"2017-02-20","Stine","Parkering",{"v":20,"d":"kr 20"}]
[null,"2017-02-25","Stine","Elektronikk",{"v":125,"d":"kr 125"}]
[null,"2017-01-01","Mor","Drivstoff",{"v":74,"d":"kr 74"}]
[null,"2017-01-15","Mor","Mat",{"v":235,"d":"kr 235"}]
[null,"2017-01-21","Mor","Klubbavgifter",{"v":125,"d":"kr 125"}]
[null,"2017-02-02","Mor","Mat",{"v":235,"d":"kr 235"}]
[null,"2017-01-01","Mor","Medisinsk",{"v":74,"d":"kr 74"}]
[null,"2017-01-15","Mor","Elektrisitet",{"v":70,"d":"kr 70"}]
[null,"2017-02-02","Mor","Tannlege",{"v":235,"d":"kr 235"}]
[null,"2017-01-01","Mor","Bilforsikring",{"v":74,"d":"kr 74"}]
[null,"2017-01-15","Mor","Helseforsikring",{"v":70,"d":"kr 70"}]
[null,"2017-02-02","Mor","Boligforsikring",{"v":235,"d":"kr 235"}]

{"sheet":"15","index":15,"n_rows":121,"n_cols":7,"rows_kept":121}
["Hvis du trenger å forenkle pivottabell, kan du minimere dataene for det andre radfeltet «opp» og skjule dem. "]
["Pivottabellen i dette eksemplet er i cellene F7 til G31. Merk celle F8 for å velge det første radfeltet for far. Deretter trykker du på ALT+JE > V for å vise det andre feltet eller S for å skjule det."]
["Hvis du vil fortsette denne opplæringen, trykker du på CTRL+PAGE DOWN. Hvis du vil gå til forrige ark, trykker du på CTRL+PAGE UP."]
[]
[]
[{"$nulls":5},{"$f":"IF(AND($F$9=\"Stine\",$G$9=935),\"Fint!\",\" \")","v":" "}]
[{"$nulls":5},"Row Labels","Summer av Beløp"]
[{"$nulls":5},"Far",{"v":2000,"d":"kr 2,000"}]
[{"$nulls":5},"Flyreise",{"v":500,"d":"kr 500"}]
[{"$nulls":5},"Skatter og avgifter",{"v":500,"d":"kr 500"}]
[{"$nulls":5},"Sport",{"v":1000,"d":"kr 1,000"}]
[{"$nulls":5},"Stine",{"v":935,"d":"kr 935"}]
[{"$nulls":5},"Billetter",{"v":125,"d":"kr 125"}]
[{"$nulls":5},"Bøker",{"v":250,"d":"kr 250"}]
[{"$nulls":5},"Elektronikk",{"v":125,"d":"kr 125"}]
[{"$nulls":5},"Klær",{"v":125,"d":"kr 125"}]
[{"$nulls":5},"Musikk",{"v":20,"d":"kr 20"}]
[{"$nulls":5},"Musikkundervisning",{"v":250,"d":"kr 250"}]
[{"$nulls":5},"Parkering",{"v":20,"d":"kr 20"}]
[{"$nulls":5},"Spise ute",{"v":20,"d":"kr 20"}]
[{"$nulls":5},"Mor",{"v":1427,"d":"kr 1,427"}]
[{"$nulls":5},"Bilforsikring",{"v":74,"d":"kr 74"}]
[{"$nulls":5},"Boligforsikring",{"v":235,"d":"kr 235"}]
[{"$nulls":5},"Drivstoff",{"v":74,"d":"kr 74"}]
[{"$nulls":5},"Elektrisitet",{"v":70,"d":"kr 70"}]
[{"$nulls":5},"Helseforsikring",{"v":70,"d":"kr 70"}]
[{"$nulls":5},"Klubbavgifter",{"v":125,"d":"kr 125"}]
[{"$nulls":5},"Mat",{"v":470,"d":"kr 470"}]
[{"$nulls":5},"Medisinsk",{"v":74,"d":"kr 74"}]
[{"$nulls":5},"Tannlege",{"v":235,"d":"kr 235"}]
[{"$nulls":5},"Grand Total",{"v":4362,"d":"kr 4,362"}]
{"$rows_empty":68}
[null,"Dato","Kjøper","Type","Beløp"]
[null,"2017-01-17","Far","Sport",{"v":1000,"d":"kr 1,000"}]
[null,"2017-01-17","Far","Flyreise",{"v":500,"d":"kr 500"}]
[null,"2017-01-17","Far","Skatter og avgifter",{"v":500,"d":"kr 500"}]
[null,"2017-02-20","Stine","Musikk",{"v":20,"d":"kr 20"}]
[null,"2017-02-25","Stine","Billetter",{"v":125,"d":"kr 125"}]
[null,"2017-01-21","Stine","Bøker",{"v":250,"d":"kr 250"}]
[null,"2017-02-20","Stine","Spise ute",{"v":20,"d":"kr 20"}]
[null,"2017-02-25","Stine","Klær",{"v":125,"d":"kr 125"}]
[null,"2017-01-21","Stine","Musikkundervisning",{"v":250,"d":"kr 250"}]
[null,"2017-02-20","Stine","Parkering",{"v":20,"d":"kr 20"}]
[null,"2017-02-25","Stine","Elektronikk",{"v":125,"d":"kr 125"}]
[null,"2017-01-01","Mor","Drivstoff",{"v":74,"d":"kr 74"}]
[null,"2017-01-15","Mor","Mat",{"v":235,"d":"kr 235"}]
[null,"2017-01-21","Mor","Klubbavgifter",{"v":125,"d":"kr 125"}]
[null,"2017-02-02","Mor","Mat",{"v":235,"d":"kr 235"}]
[null,"2017-01-01","Mor","Medisinsk",{"v":74,"d":"kr 74"}]
[null,"2017-01-15","Mor","Elektrisitet",{"v":70,"d":"kr 70"}]
[null,"2017-02-02","Mor","Tannlege",{"v":235,"d":"kr 235"}]
[null,"2017-01-01","Mor","Bilforsikring",{"v":74,"d":"kr 74"}]
[null,"2017-01-15","Mor","Helseforsikring",{"v":70,"d":"kr 70"}]
[null,"2017-02-02","Mor","Boligforsikring",{"v":235,"d":"kr 235"}]

{"sheet":"16","index":16,"n_rows":121,"n_cols":7,"rows_kept":121}
["Du kan også skjule eller vise hele andre radfeltet for å forenkle pivottabell enda mer."]
["Her er nøkkelen"]
["Merk dataområdet for pivottabell fra cellene F7 til G31, og gå deretter til ALT+JE > S for å skjule hele gruppen. Og omvendt, ALT+JE > V viser hele gruppen."]
["Hvis du vil fortsette denne opplæringen, trykker du på CTRL+PAGE DOWN. Hvis du vil gå til forrige ark, trykker du på CTRL+PAGE UP."]
[]
[{"$nulls":5},{"$f":"IF(AND($F$9=\"Stine\",$G$9=935),\"Utmerket!\",\" \")","v":" "}]
[{"$nulls":5},"Row Labels","Summer av Beløp"]
[{"$nulls":5},"Far",{"v":2000,"d":"kr 2,000"}]
[{"$nulls":5},"Flyreise",{"v":500,"d":"kr 500"}]
[{"$nulls":5},"Skatter og avgifter",{"v":500,"d":"kr 500"}]
[{"$nulls":5},"Sport",{"v":1000,"d":"kr 1,000"}]
[{"$nulls":5},"Stine",{"v":935,"d":"kr 935"}]
[{"$nulls":5},"Billetter",{"v":125,"d":"kr 125"}]
[{"$nulls":5},"Bøker",{"v":250,"d":"kr 250"}]
[{"$nulls":5},"Elektronikk",{"v":125,"d":"kr 125"}]
[{"$nulls":5},"Klær",{"v":125,"d":"kr 125"}]
[{"$nulls":5},"Musikk",{"v":20,"d":"kr 20"}]
[{"$nulls":5},"Musikkundervisning",{"v":250,"d":"kr 250"}]
[{"$nulls":5},"Parkering",{"v":20,"d":"kr 20"}]
[{"$nulls":5},"Spise ute",{"v":20,"d":"kr 20"}]
[{"$nulls":5},"Mor",{"v":1427,"d":"kr 1,427"}]
[{"$nulls":5},"Bilforsikring",{"v":74,"d":"kr 74"}]
[{"$nulls":5},"Boligforsikring",{"v":235,"d":"kr 235"}]
[{"$nulls":5},"Drivstoff",{"v":74,"d":"kr 74"}]
[{"$nulls":5},"Elektrisitet",{"v":70,"d":"kr 70"}]
[{"$nulls":5},"Helseforsikring",{"v":70,"d":"kr 70"}]
[{"$nulls":5},"Klubbavgifter",{"v":125,"d":"kr 125"}]
[{"$nulls":5},"Mat",{"v":470,"d":"kr 470"}]
[{"$nulls":5},"Medisinsk",{"v":74,"d":"kr 74"}]
[{"$nulls":5},"Tannlege",{"v":235,"d":"kr 235"}]
[{"$nulls":5},"Grand Total",{"v":4362,"d":"kr 4,362"}]
{"$rows_empty":68}
[null,"Dato","Kjøper","Type","Beløp"]
[null,"2017-01-17","Far","Sport",{"v":1000,"d":"kr 1,000"}]
[null,"2017-01-17","Far","Flyreise",{"v":500,"d":"kr 500"}]
[null,"2017-01-17","Far","Skatter og avgifter",{"v":500,"d":"kr 500"}]
[null,"2017-02-20","Stine","Musikk",{"v":20,"d":"kr 20"}]
[null,"2017-02-25","Stine","Billetter",{"v":125,"d":"kr 125"}]
[null,"2017-01-21","Stine","Bøker",{"v":250,"d":"kr 250"}]
[null,"2017-02-20","Stine","Spise ute",{"v":20,"d":"kr 20"}]
[null,"2017-02-25","Stine","Klær",{"v":125,"d":"kr 125"}]
[null,"2017-01-21","Stine","Musikkundervisning",{"v":250,"d":"kr 250"}]
[null,"2017-02-20","Stine","Parkering",{"v":20,"d":"kr 20"}]
[null,"2017-02-25","Stine","Elektronikk",{"v":125,"d":"kr 125"}]
[null,"2017-01-01","Mor","Drivstoff",{"v":74,"d":"kr 74"}]
[null,"2017-01-15","Mor","Mat",{"v":235,"d":"kr 235"}]
[null,"2017-01-21","Mor","Klubbavgifter",{"v":125,"d":"kr 125"}]
[null,"2017-02-02","Mor","Mat",{"v":235,"d":"kr 235"}]
[null,"2017-01-01","Mor","Medisinsk",{"v":74,"d":"kr 74"}]
[null,"2017-01-15","Mor","Elektrisitet",{"v":70,"d":"kr 70"}]
[null,"2017-02-02","Mor","Tannlege",{"v":235,"d":"kr 235"}]
[null,"2017-01-01","Mor","Bilforsikring",{"v":74,"d":"kr 74"}]
[null,"2017-01-15","Mor","Helseforsikring",{"v":70,"d":"kr 70"}]
[null,"2017-02-02","Mor","Boligforsikring",{"v":235,"d":"kr 235"}]

{"sheet":"17","index":17,"n_rows":107,"n_cols":13,"rows_kept":107}
["Du kan også ha flere enn ett kolonnefelt. De kan også skjules eller vises."]
["I dette eksemplet går pivottabellen fra cellene B13 til M19. I dette tilfellet har vi en Type-kategori i inndelingen Kolonner, deriblant elementer for mat og offentlige tjenester."]
["PRØV DETTE\nVelg Mat i celle C14, og gå til ALT+JE > S for å skjule hele feltet. ALT+JE > V vil vise det."]
["Hvis du vil fortsette denne opplæringen, trykker du på CTRL+PAGE DOWN. Hvis du vil gå til forrige ark, trykker du på CTRL+PAGE UP."]
{"$rows_empty":7}
[null,null,{"$f":"IF(AND($C$16=398,$D$15=\"Jan.\"),\"Bra jobba!\",\" \")","v":" "}]
[null,"Summer av Beløp","Column Labels"]
[null,null,"Mat",{"$nulls":3},"Mat Total","Offentlige tjenester",{"$nulls":3},"Offentlige tjenester Total","Grand Total"]
[null,"Row Labels","Jan.","Feb.","Apr.","Mar.2",null,"Jan.","Feb.","Apr.","Mar.2"]
[null,"Stine",{"v":74,"d":"kr 74"},{"v":74,"d":"kr 74"},{"v":125,"d":"kr 125"},{"v":125,"d":"kr 125"},{"v":398,"d":"kr 398"},{"$nulls":5},{"v":398,"d":"kr 398"}]
[null,"Far",{"v":235,"d":"kr 235"},{"v":235,"d":"kr 235"},{"v":74,"d":"kr 74"},{"v":235,"d":"kr 235"},{"v":779,"d":"kr 779"},{"$nulls":5},{"v":779,"d":"kr 779"}]
[null,"Mor",{"$nulls":5},{"v":1000,"d":"kr 1,000"},{"v":1000,"d":"kr 1,000"},{"v":70,"d":"kr 70"},{"v":20,"d":"kr 20"},{"v":2090,"d":"kr 2,090"},{"v":2090,"d":"kr 2,090"}]
[null,"Grand Total",{"v":309,"d":"kr 309"},{"v":309,"d":"kr 309"},{"v":199,"d":"kr 199"},{"v":360,"d":"kr 360"},{"v":1177,"d":"kr 1,177"},{"v":1000,"d":"kr 1,000"},{"v":1000,"d":"kr 1,000"},{"v":70,"d":"kr 70"},{"v":20,"d":"kr 20"},{"v":2090,"d":"kr 2,090"},{"v":3267,"d":"kr 3,267"}]
{"$rows_empty":75}
[null,"Måned","Kjøper","Type","Beløp"]
[null,"Jan.","Stine","Mat",{"v":74,"d":"kr 74"}]
[null,"Jan.","Far","Mat",{"v":235,"d":"kr 235"}]
[null,"Jan.","Mor","Offentlige tjenester",{"v":1000,"d":"kr 1,000"}]
[null,"Feb.","Stine","Mat",{"v":74,"d":"kr 74"}]
[null,"Feb.","Far","Mat",{"v":235,"d":"kr 235"}]
[null,"Feb.","Mor","Offentlige tjenester",{"v":1000,"d":"kr 1,000"}]
[null,"Mar.","Stine","Mat",{"v":125,"d":"kr 125"}]
[null,"Mar.","Far","Mat",{"v":235,"d":"kr 235"}]
[null,"Mar.","Mor","Offentlige tjenester",{"v":20,"d":"kr 20"}]
[null,"Apr.","Stine","Mat",{"v":125,"d":"kr 125"}]
[null,"Apr.","Far","Mat",{"v":74,"d":"kr 74"}]
[null,"Apr.","Mor","Offentlige tjenester",{"v":70,"d":"kr 70"}]

{"sheet":"18","index":18,"n_rows":146,"n_cols":5,"rows_kept":146}
["Noe å huske på: Hvis du trenger mer detaljer, er det mulig å legge til mange flere radfelter eller kolonnefelter. I dette eksemplet er det tre radfelter."]
["I dette eksemplet strekker pivottabellen seg fra celle D8 til E29 og har felter for årstid, kjøper, og type i kolonne D med summer av Beløp i kolonne E."]
["EKSPERTTIPS\nSelv om du kan legge til flere felter, betyr ikke det at du må. I dette eksemplet fungerer det bra. Men noen ganger kan for mange felter, med alle sine innrykk, gjøre pivottabell for komplisert å forstå for andre. "]
["Hvis du vil fortsette denne opplæringen, trykker du på CTRL+PAGE DOWN. Hvis du vil gå til forrige ark, trykker du på CTRL+PAGE UP."]
[]
[]
[]
[{"$nulls":3},"Row Labels","Summer av Beløp"]
[{"$nulls":3},"Høst",{"v":5425,"d":"kr 5,425"}]
[{"$nulls":3},"Mor",{"v":5425,"d":"kr 5,425"}]
[{"$nulls":3},"Forsikring",{"v":1272,"d":"kr 1,272"}]
[{"$nulls":3},"Leie",{"v":3220,"d":"kr 3,220"}]
[{"$nulls":3},"Offentlige tjenester",{"v":933,"d":"kr 933"}]
[{"$nulls":3},"Vår",{"v":4760,"d":"kr 4,760"}]
[{"$nulls":3},"Far",{"v":4760,"d":"kr 4,760"}]
[{"$nulls":3},"Forsikring",{"v":1040,"d":"kr 1,040"}]
[{"$nulls":3},"Leie",{"v":2400,"d":"kr 2,400"}]
[{"$nulls":3},"Offentlige tjenester",{"v":1320,"d":"kr 1,320"}]
[{"$nulls":3},"Sommer",{"v":3473,"d":"kr 3,473"}]
[{"$nulls":3},"Mor",{"v":3473,"d":"kr 3,473"}]
[{"$nulls":3},"Forsikring",{"v":1080,"d":"kr 1,080"}]
[{"$nulls":3},"Leie",{"v":1260,"d":"kr 1,260"}]
[{"$nulls":3},"Offentlige tjenester",{"v":1133,"d":"kr 1,133"}]
[{"$nulls":3},"Vinter",{"v":4100,"d":"kr 4,100"}]
[{"$nulls":3},"Far",{"v":4100,"d":"kr 4,100"}]
[{"$nulls":3},"Forsikring",{"v":1030,"d":"kr 1,030"}]
[{"$nulls":3},"Leie",{"v":1420,"d":"kr 1,420"}]
[{"$nulls":3},"Offentlige tjenester",{"v":1650,"d":"kr 1,650"}]
[{"$nulls":3},"Grand Total",{"v":17758,"d":"kr 17,758"}]
{"$rows_empty":68}
[null,"Kjøper","Årstid","Type","Beløp"]
[null,"Far","Vinter","Forsikring",{"v":300,"d":"kr 300"}]
[null,"Far","Vinter","Leie",{"v":200,"d":"kr 200"}]
[null,"Far","Vinter","Offentlige tjenester",{"v":400,"d":"kr 400"}]
[null,"Far","Vinter","Forsikring",{"v":300,"d":"kr 300"}]
[null,"Far","Vinter","Leie",{"v":800,"d":"kr 800"}]
[null,"Far","Vinter","Offentlige tjenester",{"v":400,"d":"kr 400"}]
[null,"Far","Vinter","Forsikring",{"v":200,"d":"kr 200"}]
[null,"Far","Vinter","Leie",{"v":300,"d":"kr 300"}]
[null,"Far","Vinter","Offentlige tjenester",{"v":450,"d":"kr 450"}]
[null,"Far","Vinter","Forsikring",{"v":230,"d":"kr 230"}]
[null,"Far","Vinter","Leie",{"v":120,"d":"kr 120"}]
[null,"Far","Vinter","Offentlige tjenester",{"v":400,"d":"kr 400"}]
[null,"Far","Vår","Forsikring",{"v":210,"d":"kr 210"}]
[null,"Far","Vår","Leie",{"v":300,"d":"kr 300"}]
[null,"Far","Vår","Offentlige tjenester",{"v":400,"d":"kr 400"}]
[null,"Far","Vår","Forsikring",{"v":230,"d":"kr 230"}]
[null,"Far","Vår","Leie",{"v":900,"d":"kr 900"}]
[null,"Far","Vår","Offentlige tjenester",{"v":300,"d":"kr 300"}]
[null,"Far","Vår","Forsikring",{"v":200,"d":"kr 200"}]
[null,"Far","Vår","Leie",{"v":1000,"d":"kr 1,000"}]
[null,"Far","Vår","Offentlige tjenester",{"v":220,"d":"kr 220"}]
[null,"Far","Vår","Forsikring",{"v":400,"d":"kr 400"}]
[null,"Far","Vår","Leie",{"v":200,"d":"kr 200"}]
[null,"Far","Vår","Offentlige tjenester",{"v":400,"d":"kr 400"}]
[null,"Mor","Sommer","Forsikring",{"v":100,"d":"kr 100"}]
[null,"Mor","Sommer","Leie",{"v":30,"d":"kr 30"}]
[null,"Mor","Sommer","Offentlige tjenester",{"v":123,"d":"kr 123"}]
[null,"Mor","Sommer","Forsikring",{"v":300,"d":"kr 300"}]
[null,"Mor","Sommer","Leie",{"v":350,"d":"kr 350"}]
[null,"Mor","Sommer","Offentlige tjenester",{"v":230,"d":"kr 230"}]
[null,"Mor","Sommer","Forsikring",{"v":120,"d":"kr 120"}]
[null,"Mor","Sommer","Leie",{"v":640,"d":"kr 640"}]
[null,"Mor","Sommer","Offentlige tjenester",{"v":530,"d":"kr 530"}]
[null,"Mor","Sommer","Forsikring",{"v":560,"d":"kr 560"}]
[null,"Mor","Sommer","Leie",{"v":240,"d":"kr 240"}]
[null,"Mor","Sommer","Offentlige tjenester",{"v":250,"d":"kr 250"}]
[null,"Mor","Høst","Forsikring",{"v":62,"d":"kr 62"}]
[null,"Mor","Høst","Leie",{"v":600,"d":"kr 600"}]
[null,"Mor","Høst","Offentlige tjenester",{"v":340,"d":"kr 340"}]
[null,"Mor","Høst","Forsikring",{"v":205,"d":"kr 205"}]
[null,"Mor","Høst","Leie",{"v":500,"d":"kr 500"}]
[null,"Mor","Høst","Offentlige tjenester",{"v":403,"d":"kr 403"}]
[null,"Mor","Høst","Forsikring",{"v":503,"d":"kr 503"}]
[null,"Mor","Høst","Leie",{"v":2000,"d":"kr 2,000"}]
[null,"Mor","Høst","Offentlige tjenester",{"v":140,"d":"kr 140"}]
[null,"Mor","Høst","Forsikring",{"v":502,"d":"kr 502"}]
[null,"Mor","Høst","Leie",{"v":120,"d":"kr 120"}]
[null,"Mor","Høst","Offentlige tjenester",{"v":50,"d":"kr 50"}]

{"sheet":"19","index":19,"n_rows":55,"n_cols":5,"rows_kept":55}
["Klar for mer øvelse? Benytt deg av sjansen til å se gjennom dataene i celle B7 til E55 nedenfor. Når du er klar, kan du gå til neste ark for å øve deg på det du har lært så langt. "]
["Du trenger ikke se gjennom alle radene med data. Bare se gjennom feltnavnene i rad 7. Du skal arbeide med disse på neste ark. "]
["Hvis du vil fortsette denne opplæringen, trykker du på CTRL+PAGE DOWN. Hvis du vil gå til forrige ark, trykker du på CTRL+PAGE UP."]
[]
[]
[]
[null,"Årstid","Salgsrepresentant","Produkt","Solgte enheter"]
[null,"Vinter","Ingjerd","Appelsiner",300]
[null,"Vinter","Jostein","Grapefrukt",200]
[null,"Vinter","Tormod","Epler",400]
[null,"Vinter","Ingjerd","Bananer",300]
[null,"Vinter","Jostein","Appelsiner",800]
[null,"Vinter","Tormod","Grapefrukt",400]
[null,"Vinter","Ingjerd","Epler",200]
[null,"Vinter","Jostein","Bananer",300]
[null,"Vinter","Tormod","Appelsiner",450]
[null,"Vinter","Ingjerd","Grapefrukt",230]
[null,"Vinter","Jostein","Epler",120]
[null,"Vinter","Tormod","Bananer",400]
[null,"Vår","Ingjerd","Rødbeter",210]
[null,"Vår","Jostein","Poteter",300]
[null,"Vår","Tormod","Salat",400]
[null,"Vår","Ingjerd","Reddiker",230]
[null,"Vår","Jostein","Rødbeter",900]
[null,"Vår","Tormod","Poteter",300]
[null,"Vår","Ingjerd","Salat",200]
[null,"Vår","Jostein","Reddiker",{"v":1000,"d":"1,000"}]
[null,"Vår","Tormod","Rødbeter",220]
[null,"Vår","Ingjerd","Poteter",400]
[null,"Vår","Jostein","Salat",200]
[null,"Vår","Tormod","Reddiker",400]
[null,"Sommer","Ingjerd","Blåbær",100]
[null,"Sommer","Jostein","Jordbær",30]
[null,"Sommer","Tormod","Druer",123]
[null,"Sommer","Ingjerd","Gresskar",300]
[null,"Sommer","Jostein","Blåbær",350]
[null,"Sommer","Tormod","Jordbær",230]
[null,"Sommer","Ingjerd","Druer",120]
[null,"Sommer","Jostein","Gresskar",640]
[null,"Sommer","Tormod","Blåbær",530]
[null,"Sommer","Ingjerd","Jordbær",560]
[null,"Sommer","Jostein","Druer",240]
[null,"Sommer","Tormod","Gresskar",250]
[null,"Høst","Ingjerd","Flaskegresskar",62]
[null,"Høst","Jostein","Squash",600]
[null,"Høst","Tormod","Epler",340]
[null,"Høst","Ingjerd","Appelsiner",205]
[null,"Høst","Jostein","Flaskegresskar",500]
[null,"Høst","Tormod","Squash",403]
[null,"Høst","Ingjerd","Epler",503]
[null,"Høst","Jostein","Appelsiner",{"v":2000,"d":"2,000"}]
[null,"Høst","Tormod","Flaskegresskar",140]
[null,"Høst","Ingjerd","Squash",502]
[null,"Høst","Jostein","Epler",120]
[null,"Høst","Tormod","Appelsiner",50]

{"sheet":"20 ","index":20,"n_rows":17,"n_cols":9,"rows_kept":17}
["1. Pivottabellområdet i dette eksemplet er i cellene B12 til C17. Gå til hvilken som helst av disse cellene. \n\n"]
["2. Trykk på ALT+JE, L for å starte feltlisten for pivottabellfelt Fokus blir som standard på tekstboksen for søk: Rediger «Skriv inn ordene det skal søkes etter». Ikke skriv inn noe, i stedet trykker du én gang på TAB. Obs! Hvis feltlisten ikke starter, trykker du på ALT+JE, L på nytt."]
["3. Trykk på piltastene for å gå til Salgsrepresentant-feltet. Trykk på MELLOMROM for å legge til Salgsrepresentant-feltet i Rader-området. Hvis du vil vise detaljer om en salgsrepresentant i Kolonner-området, bruker du tabulatortasten til å flytte til Salgsrepresentant-feltet i inndelingen Rader, deretter trykker du på MELLOMROM og velger Flytt til kolonneetiketter. Trykk på ESC for å lukke feltruten for pivottabellfelt. "]
["4. Bestem hvem som solgte flest elementer i høst, og velg deretter i celle I8. "]
["Hvis du vil fortsette denne opplæringen, trykker du på CTRL+PAGE DOWN. Hvis du vil gå til forrige ark, trykker du på CTRL+PAGE UP."]
[]
[{"$nulls":8},"Velg en:"]
[]
[{"$nulls":8},{"$f":"IF($I$8=\"Jostein\",\"Du har rett!\",IF($I$8=\"Tormod\",\"Prøv på nytt ...\",IF($I$8=\"Ingjerd\",\"Ikke helt ...\",IF($I$8=\" \",\" \",\" \"))))","v":" "}]
[]
[]
[null,"Row Labels","Summer av Solgte enheter"]
[null,"Høst",{"v":5425,"d":"5,425"}]
[null,"Vår",{"v":4760,"d":"4,760"}]
[null,"Sommer",{"v":3473,"d":"3,473"}]
[null,"Vinter",{"v":4100,"d":"4,100"}]
[null,"Grand Total",{"v":17758,"d":"17,758"}]

{"sheet":"21","index":21,"n_rows":14,"n_cols":10,"rows_kept":14}
["1. Klikk på celle B13 for å aktivere pivottabellen kalt Summer av Solgte enheter.\n\n"]
["2. Trykk på ALT+JE, L for å starte feltlisten for pivottabellfelt. Fokus blir som standard på tekstboksen for søk: Rediger «Skriv inn ordene det skal søkes etter». Ikke skriv inn noe, i stedet trykker du én gang på TAB. Obs! Hvis feltlisten ikke starter, trykker du på ALT+JE, L på nytt."]
["3. Bruk piltastene og MELLOMROM til å utvide eksemplet til en loddrett pivottabell som har årstider til venstre og salgsrepresentanter rykket inn under årstider. Trykk på ESC for å avslutte feltruten for pivottabellfelt. "]
["Hvis du vil fortsette denne opplæringen, trykker du på CTRL+PAGE DOWN. Hvis du vil gå til forrige ark, trykker du på CTRL+PAGE UP."]
[{"$nulls":9},{"$f":"IF(AND(B$14=\"Høst\",$C$17=933),\"Godt jobbet! Du har plassert\",\" \")","v":" "}]
[{"$nulls":9},{"$f":"IF(AND(B$14=\"Høst\",$C$17=933),\"et sekundært radfelt. Rull\",\" \")","v":" "}]
[{"$nulls":9},{"$f":"IF(AND(B$14=\"Høst\",$C$17=933),\"nedover, og klikk på Neste.\",\" \")","v":" "}]
[]
[]
[]
[]
[]
[null,"Summer av Solgte enheter"]
[null,{"v":17758,"d":"17,758"}]

{"sheet":"22","index":22,"n_rows":14,"n_cols":10,"rows_kept":14}
["1. Klikk på celle B13 for å aktivere pivottabellen kalt Summer av Solgte enheter."]
["2. Trykk på ALT+JE, L for å starte feltlisten for pivottabellfelt. Fokus blir som standard på tekstboksen for søk: Rediger «Skriv inn ordene det skal søkes etter». Ikke skriv inn noe, i stedet trykker du én gang på TAB. Obs! Hvis feltlisten ikke starter, trykker du på ALT+JE, L på nytt."]
["3. Bruk piltastene og MELLOMROM til å endre eksemplet slik at det viser hvert produkt i en egen rad og hver årstid i en egen kolonne."]
["Hvis du vil fortsette denne opplæringen, trykker du på CTRL+PAGE DOWN. Hvis du vil gå til forrige ark, trykker du på CTRL+PAGE UP.",{"$nulls":8},{"$f":"IF(AND($B$15=\"Appelsiner\",$G$28=1505),\"Godt jobbet! Du har\",\" \")","v":" "}]
[{"$nulls":9},{"$f":"IF(AND($B$15=\"Appelsiner\",$G$28=1505),\"plassert et radfelt til\",\" \")","v":" "}]
[{"$nulls":9},{"$f":"IF(AND($B$15=\"Appelsiner\",$G$28=1505),\"venstre og et kolonnefelt\",\" \")","v":" "}]
[{"$nulls":9},{"$f":"IF(AND($B$15=\"Appelsiner\",$G$28=1505),\"med fire nye kolonner. Rull\",\" \")","v":" "}]
[{"$nulls":9},{"$f":"IF(AND($B$15=\"Appelsiner\",$G$28=1505),\"nedover, og klikk på Neste...\",\" \")","v":" "}]
[]
[]
[]
[]
[null,"Summer av Solgte enheter"]
[null,{"v":17758,"d":"17,758"}]

{"sheet":"23 ","index":23,"n_rows":16,"n_cols":18,"rows_kept":16}
["1. Klikk på celle B13 for å aktivere pivottabellen kalt Summer av Solgte enheter.\n\n"]
["2. Trykk på ALT+JE, L for å starte feltlisten for pivottabellfelt. Fokus blir som standard på tekstboksen for søk: Rediger «Skriv inn ordene det skal søkes etter». Ikke skriv inn noe, i stedet trykker du én gang på TAB. Obs! Hvis feltlisten ikke starter, trykker du på ALT+JE, L på nytt."]
["3. Bruk tabulatortasten, piltastene og MELLOMROM til å endre eksemplet, slik at det viser salgsrepresentanter til venstre med årstider rykket inn under dem."]
["Hvis du vil fortsette denne opplæringen, trykker du på CTRL+PAGE DOWN. Hvis du vil gå til forrige ark, trykker du på CTRL+PAGE UP."]
[{"$nulls":7},{"$f":"IF(AND($B$14=\"Tormod\",$C$14=5036),\"Godt jobbet! Dataene er\",\" \")","v":" "}]
[{"$nulls":7},{"$f":"IF(AND($B$14=\"Tormod\",$C$14=5036),\"nå enklere å lese. Rull\",\" \")","v":" "}]
[{"$nulls":7},{"$f":"IF(AND($B$14=\"Tormod\",$C$14=5036),\"nedover, og klikk på Neste....\",\" \")","v":" "}]
[]
[]
[]
[]
[]
[null,null,"Column Labels"]
[null,null,"Tormod",{"$nulls":3},"Tormod Total","Jostein",{"$nulls":3},"Jostein Total","Ingjerd",{"$nulls":3},"Ingjerd Total","Grand Total"]
[null,null,"Høst","Vår","Sommer","Vinter",null,"Høst","Vår","Sommer","Vinter",null,"Høst","Vår","Sommer","Vinter"]
[null,"Summer av Solgte enheter",933,{"v":1320,"d":"1,320"},{"v":1133,"d":"1,133"},{"v":1650,"d":"1,650"},{"v":5036,"d":"5,036"},{"v":3220,"d":"3,220"},{"v":2400,"d":"2,400"},{"v":1260,"d":"1,260"},{"v":1420,"d":"1,420"},{"v":8300,"d":"8,300"},{"v":1272,"d":"1,272"},{"v":1040,"d":"1,040"},{"v":1080,"d":"1,080"},{"v":1030,"d":"1,030"},{"v":4422,"d":"4,422"},{"v":17758,"d":"17,758"}]

{"sheet":"24","index":24,"n_rows":14,"n_cols":8,"rows_kept":14}
["1. Klikk på celle B13 for å aktivere pivottabellen kalt Summer av Solgte enheter."]
["2. Trykk på ALT+JE, L for å starte feltlisten for pivottabellfelt. Fokus blir som standard på tekstboksen for søk: Rediger «Skriv inn ordene det skal søkes etter». Ikke skriv inn noe, i stedet trykker du én gang på TAB. Obs! Hvis feltlisten ikke starter, trykker du på ALT+JE, L på nytt."]
["3. Bruk tabulatortasten, piltastene og MELLOMROM til å endre eksemplet, slik at hver salgsrepresentant har sine egne kolonnefelter med årstider til venstre og produkter rykket inn under dem."]
["4. Merk celle I9, og velg hvor mange grapefrukter Tormod solgte i vinter."]
["Hvis du vil fortsette denne opplæringen, trykker du på CTRL+PAGE DOWN. Hvis du vil gå til forrige ark, trykker du på CTRL+PAGE UP."]
[]
[]
[{"$nulls":7},"Velg en:"]
[]
[{"$nulls":7},{"$f":"IF($H$9=400,\"Du har rett!\",IF($H$9=530,\"Prøv på nytt ...\",IF($H$9=123,\"Ikke helt ...\",\" \")))","v":" "}]
[]
[]
[null,"Summer av Solgte enheter"]
[null,{"v":17758,"d":"17,758"}]

{"sheet":"Finn ut mer","index":25,"n_rows":8,"n_cols":1,"rows_kept":8}
["Godt jobbet. Er ikke pivottabeller fine?"]
["Men vi oppfordrer deg til å fortsette! Det er mer å oppdage ..."]
["Mer pivotinformasjon\nOppdag hva mer du kan gjøre, ved å lese denne nyttige artikkelen om pivottabeller."]
["Om oppdatering\nLes denne viktige artikkelen om hvordan du oppdaterer pivottabeller. "]
["Fellesskap\nFå kontakt med andre Excel-tilhengere. De kan hjelpe deg, og du kan hjelpe dem."]
[]
[]
[" "]